Cogmind - Beta 14 @@@ ROGUE MODE // 2024.10.05 @ 18:30:24 Player: Taterpoppsyco Result: Destroyed by G-34 Mercenary with Small Laser Performance ------------- Evolutions (1) 500 Regions Visited (3) 600 Robots Destroyed (7) 35 Value Destroyed (100) 100 Prototype IDs (0) 0 Alien Tech Used (0) 0 Bonus (0) 0 TOTAL SCORE: 1235 Bonus ------- None Cogmind --------- Core Integrity 0/400 Matter 260/300 Energy 8/100 System Corruption 0% Temperature Cool (6) Movement Core (300) Ox5 Location -9/Materials Parts ------- > --- POWER (2) -------- (None) > --- PROPULSION (2) --- (None) > --- UTILITY (2) ------ Small Storage Unit Shield Generator > --- WEAPON (3) ------- Beam Rifle Beam Rifle Beam Rifle > --- INVENTORY (8) ---- Shield Generator Peak State ------------ > --- POWER ------------ (None) > --- PROPULSION ------- (None) > --- UTILITY ---------- Small Storage Unit Shield Generator > --- WEAPON ----------- Beam Rifle Beam Rifle Beam Rifle > --- INVENTORY -------- (None) [Rating: 9] Favorites ----------- Power Ion Engine Engine Ion Engine Propulsion Light Treads Treads Light Treads Utility Small Storage Unit Device Sensor Array Storage Small Storage Unit Weapon Assault Rifle Energy Gun Beam Rifle Ballistic Gun Assault Rifle Special Weapon Mining Laser Build | -11 -10 -10 -9 ------- Run | Yrd Mat Min Mat Slots Evolved 2 | . . . 2 Power 1 | . . . 1 Propulsion . | . . . . Utility . | . . . . Weapon 1 | . . . 1 Parts Attached 16 | 7 . 1 8 Power 3 | 2 . . 1 Engine 3 | 2 . . 1 Core . | . . . . Reactor . | . . . . Propulsion 2 | 2 . . . Treads 2 | 2 . . . Leg . | . . . . Wheel . | . . . . Hover . | . . . . Flight . | . . . . Utility 3 | 1 . 1 1 Device 2 | . . 1 1 Storage 1 | 1 . . . Processor . | . . . . Hackware . | . . . . Protection . | . . . . Artifact . | . . . . Weapon 8 | 2 . . 6 Energy Gun 3 | . . . 3 Energy Cannon . | . . . . Ballistic Gun 2 | 2 . . . Ballistic Cannon . | . . . . Launcher . | . . . . Special Weapon 3 | . . . 3 Impact Weapon . | . . . . Slashing Weapon . | . . . . Piercing Weapon . | . . . . Special Melee Weapon . | . . . . Unidentified Prototypes . | . . . . Parts Lost 10 | . . 5 5 Power 2 | . . 1 1 Propulsion 2 | . . 1 1 Utility 1 | . . 1 . Weapon 5 | . . 2 3 Highest Loss Streak 5 | . . 5 5 To Critical Strikes . | . . . . Average Slot Usage (%) 75 | . 85 81 48 Engine 11 | . 14 10 6 Treads 22 | . 28 24 6 Device 2 | . . 9 2 Storage 13 | . 14 14 11 Energy Gun 1 | . . . 6 Ballistic Gun 19 | . 28 21 . Special Weapon 3 | . . . 15 Peak Build Rating 9 | 6 6 7 9 Average Rating 5 | 4 6 5 4 On Entrance 3 | . 6 6 2 Naked Turns . | . . . . Heaviest Build 16 | 14 14 15 16 Greatest Support 40 | 40 40 40 20 Greatest Overweight (x) 5 | . . . 5 Average Overweight (x) . | . . . . Largest Inventory Capacity 8 | 8 8 8 8 Average Capacity 7 | 7 8 8 8 Most Carried 5 | 5 4 5 3 Average Carried 2 | 1 2 4 . Final Capacity 8 | 8 8 8 8 Final Carried 4 | 1 4 4 1 Class Distribution -------------------- 84% | Mutant 10% | Gunner 5% | Tank Dominant Class ---------------- Mutant | -10/Materials Mutant | -10/Mines Gunner | -9/Materials Resources | -11 -10 -10 -9 ----------- Run | Yrd Mat Min Mat Matter Collected 399 | 198 173 13 15 Remotely . | . . . . Salvage Created 153 | . 117 . 36 Parts 10 | . 5 . 5 Haulers Intercepted . | . . . . Recyclers Shooed . | . . . . Parts Field Recycled . | . . . . Retrieved Matter . | . . . . Parts Self-Destructed . | . . . . Prevented . | . . . . Kills | -11 -10 -10 -9 ------- Run | Yrd Mat Min Mat Combat Hostiles Destroyed 6 | . 4 . 2 Melee 1 | . . . 1 Guns 5 | . 4 . 1 Classes Destroyed 3 | . 3 . . Watcher 1 | . 1 . . Swarmer 5 | . 3 . 2 Grunt 1 | . 1 . . Best Kill Streak 4 | . 4 . 2 Combat Bots Only 3 | . 3 . 2 Max Kills in Single Turn 2 | . 2 . 1 Gunslinging 1 | . 1 . . Exploded . | . . . . Melee 1 | . . . 1 Uniques/NPCs Destroyed . | . . . . Combat | -11 -10 -10 -9 -------- Run | Yrd Mat Min Mat Hostile Shots Fired 195 | . 82 5 108 Missed 61 | . 31 . 30 Damage Taken 1532 | . 448 307 777 Core 590 | . 101 80 409 Absorbed by Shields 33 | . . . 33 Core Remaining (%) 63 | 100 . 27 . Volleys Fired 24 | . 19 1 4 Largest 3 | . 2 2 3 Hottest 300 | . 40 40 300 Shots Fired 49 | . 38 2 9 Gun 41 | . 38 2 1 Cannon . | . . . . Launcher . | . . . . Special 8 | . . . 8 Kinetic 40 | . 38 2 . Thermal 9 | . . . 9 Explosive . | . . . . Electromagnetic . | . . . . Robot Hit Streak 6 | . 6 1 1 Robot Miss Streak 5 | . 5 1 3 Penetration Max . | . . . . Secondary Targets 1 | . 1 . . Max Gunslinging Chain 1 | . 1 . . Shots Hit Robots 21 | . 17 1 3 Core Hits 9 | . 7 . 2 Critical Kills . | . . . . Critical Parts Destroyed . | . . . . Critical Strikes . | . . . . Melee Attacks . | . . . . Impact . | . . . . Slashing . | . . . . Piercing . | . . . . Sneak Attacks . | . . . . Combat Hostiles . | . . . . Follow-up Attacks . | . . . . Damage Inflicted 370 | . 265 10 95 Guns 290 | . 265 10 15 Cannons . | . . . . Explosions . | . . . . Melee . | . . . . Ramming 8 | . . . 8 Kinetic 275 | . 265 10 . Thermal 87 | . . . 87 Explosive . | . . . . Electromagnetic . | . . . . Impact . | . . . . Slashing . | . . . . Piercing . | . . . . Highest Corruption 2 | . . 2 . Average Corruption 2 | . . 2 . Corruption Purged . | . . . . Corruption Blocked . | . . . . Overload Shots . | . . . . Overflow Damage . | . . . . Projectiles . | . . . . Explosions . | . . . . Melee . | . . . . Knockbacks . | . . . . Impact . | . . . . Kinetic . | . . . . Secondary . | . . . . Self-Inflicted Damage 4 | . . . 4 Shots . | . . . . Rammed 1 | . . . 1 Targets Rammed 1 | . . . 1 Kicked . | . . . . Crushed . | . . . . Highest Temperature 122 | . . . 122 Average Temperature 52 | . . . 52 Received Heat Transfer 374 | . 42 . 332 Siege Activations . | . . . . Robots Corrupted . | . . . . Combat Hostiles . | . . . . Parts Fried . | . . . . Impact Corruptions . | . . . . Robots Melted . | . . . . Combat Hostiles . | . . . . Parts Melted . | . . . . Heat Transferred 187 | . . . 187 Parts Sabotaged . | . . . . Parts Stolen . | . . . . Parts Stripped . | . . . . Power Chain Reactions . | . . . . Alert | -11 -10 -10 -9 ------- Run | Yrd Mat Min Mat Peak Influence 122 | . 122 47 40 Initial 47 | . . 47 11 Average 29 | . 41 37 15 Maximum Alert Level . | . . . . Low Security (%) 100 | 100 100 100 100 Level 1 . | . . . . Level 2 . | . . . . Level 3 . | . . . . Level 4 . | . . . . Level 5 . | . . . . High Security . | . . . . Max Security . | . . . . Squads Dispatched . | . . . . Investigation . | . . . . Extermination . | . . . . Reinforcement . | . . . . Assault . | . . . . Garrison . | . . . . Intercept . | . . . . Searches Triggered . | . . . . Construction Impeded . | . . . . Haulers Reinforced . | . . . . Active Scanning Responses . | . . . . Cargo Convoy Interrupts . | . . . . Stealth | -11 -10 -10 -9 --------- Run | Yrd Mat Min Mat Distress Signals 3 | . 3 . . Communications Jammed . | . . . . Distress Signals . | . . . . Times Spotted 17 | . 9 2 6 Peak Tracking Total 6 | . 6 2 6 Tactical Retreats 1 | . . 1 . Traps | -11 -10 -10 -9 ------- Run | Yrd Mat Min Mat Traps Triggered . | . . . . Indirectly . | . . . . Trap Hack Attempts . | . . . . Triggered . | . . . . Disarmed . | . . . . Reprogrammed . | . . . . Reused . | . . . . Traps Extracted . | . . . . Installed . | . . . . Triggered . | . . . . Machines | -11 -10 -10 -9 ---------- Run | Yrd Mat Min Mat Machines Disabled . | . . . . Max in Single Turn . | . . . . Machines Repaired . | . . . . Machines Dismantled . | . . . . Machines Sabotaged . | . . . . Overloaded Fab Kills . | . . . . Hacking | -11 -10 -10 -9 --------- Run | Yrd Mat Min Mat Machines Accessed 1 | . 1 . . Terminals 1 | . 1 . . Fabricators . | . . . . Repair Stations . | . . . . Recycling Units . | . . . . Scanalyzers . | . . . . Garrison Access . | . . . . Total Hacks 5 | . 5 . . Successful 1 | . 1 . . Failed 4 | . 4 . . Catastrophic . | . . . . Database Lockouts . | . . . . Manual . | . . . . Terminals 5 | . 5 . . Fabricators . | . . . . Repair Stations . | . . . . Recycling Units . | . . . . Scanalyzers . | . . . . Garrison Access . | . . . . Terminal Hacks 1 | . 1 . . Record 1 | . 1 . . Fabricator Hacks . | . . . . Repair Station Hacks . | . . . . Recycling Unit Hacks . | . . . . Scanalyzer . | . . . . Garrison Access Hacks . | . . . . Unauthorized Hacks . | . . . . Terminals . | . . . . Fabricators . | . . . . Repair Stations . | . . . . Recycling Units . | . . . . Scanalyzers . | . . . . Garrison Access . | . . . . Data Cores Recovered . | . . . . Used . | . . . . Hacking Detections 1 | . 1 . . Full Trace Events 1 | . 1 . . Feedback Events . | . . . . Feedback Blocked . | . . . . Robot Schematics Acquired . | . . . . Robots Built . | . . . . Authchips . | . . . . Time . | . . . . Total Robot Build Rating . | . . . . Part Schematics Acquired . | . . . . Parts Built . | . . . . Authchips . | . . . . Time . | . . . . Total Part Build Rating . | . . . . Parts Repaired . | . . . . Time . | . . . . Parts Recycled . | . . . . Recycled Matter . | . . . . Retrieved Matter . | . . . . Retrieved Components . | . . . . Parts Scanalyzed . | . . . . Part Schematics Acquired . | . . . . Parts Damaged . | . . . . Bothacking | -11 -10 -10 -9 ------------ Run | Yrd Mat Min Mat Used RIF Installer . | . . . . Robots Hacked . | . . . . Non-combat . | . . . . Combat . | . . . . Robot Hacks Applied . | . . . . Relay Couplers Released . | . . . . Fabnet Peak Effective % . | . . . . Robots Rewired . | . . . . Allies Hacked . | . . . . Hacks Repelled . | . . . . Allies | -11 -10 -10 -9 -------- Run | Yrd Mat Min Mat Total Allies . | . . . . Largest Group . | . . . . Highest-Rated Group . | . . . . Highest-Rated Ally . | . . . . Total Orders . | . . . . Ally Attacks . | . . . . Total Damage . | . . . . Kills . | . . . . Allies Corrupted . | . . . . Allies Melted . | . . . . Intel | -11 -10 -10 -9 ------- Run | Yrd Mat Min Mat Robot Analysis Total . | . . . . Derelict Logs Recovered . | . . . . Drone Launches . | . . . . Drone Recoveries . | . . . . Exploration | -11 -10 -10 -9 ------------- Run | Yrd Mat Min Mat Turns Passed 751 | 92 344 154 161 Spaces Moved 409 | 61 178 94 76 Core 48 | 17 . . 31 Treads 361 | 44 178 94 45 Legs . | . . . . Wheels . | . . . . Hover . | . . . . Flight . | . . . . Fastest Speed 50 | 50 160 160 100 Average Speed 154 | 129 160 160 153 Slowest Speed 300 | 160 160 160 300 Overloaded Moves . | . . . . Propulsion Burnouts . | . . . . Robots Hopped . | . . . . Cave-ins Triggered 1 | . . 1 . Exploration Rate (%) 16 | 4 25 23 12 Regions Visited 3 Branch Regions 1 Pre-discovered Areas . | . . . . Known Exits Taken . | . . . . Unknown Exits Taken 3 | 1 1 1 . Scrap Searched 1 | . . 1 . Spaces Dug . | . . . . Terrain Destroyed 3 | . . . 3 Melee . | . . . . Projectile 3 | . . . 3 AOE . | . . . . Terrain Rammed . | . . . . Walls Destroyed . | . . . . Machines Disabled . | . . . . Actions | -11 -10 -10 -9 --------- Run | Yrd Mat Min Mat Total 465 | 74 199 96 96 Wait 2 | . . . 2 Move 406 | 60 177 93 76 Hop . | . . . . Pick Up 16 | 7 3 1 5 Fast Attach . | . . . . Attach 15 | 6 . 1 8 Detach . | . . . . Swap 1 | 1 . . . Drop . | . . . . Fire 24 | . 19 1 4 Melee . | . . . . Ram 1 | . . . 1 Kick . | . . . . Crush . | . . . . Escape Stasis . | . . . . Rewire . | . . . . Trap . | . . . . Miscellaneous . | . . . . Route ------- -11/Scrapyard -10/Materials -10/Mines -9/Materials History --------- Turn | Location | Event 10 | -11/Scrapyard | Discovered new exit (range 16) 93 | -11/Scrapyard | Entered Materials 193 | -10/Materials | Discovered new exit (range 10) 303 | -10/Materials | Build established: Mutant 437 | -10/Materials | Entered Mines 480 | -10/Mines | YI-UF0 nonchalantly dropped a Grenade Launcher on the ground 491 | -10/Mines | Met a Derelict bent on vengeance 503 | -10/Mines | Discovered new exit (range 8) 504 | -10/Mines | Assembled infested the area 556 | -10/Mines | Core integrity fell below 50% 561 | -10/Mines | Crushed by falling debris 591 | -10/Mines | Entered Materials 591 | -9/Materials | Evolved 2 slots: Power x1, Weapon x1 592 | -9/Materials | Lost 5 parts (1p1n1u2w) 702 | -9/Materials | Core integrity fell below 50% 715 | -9/Materials | Core integrity fell below 20% 723 | -9/Materials | Lost 5 parts (1p1n3w) 752 | -9/Materials | Destroyed by G-34 Mercenary with Small Laser Last Messages --------------- K-01 Serf collects debris. Lgt. Ion Engine destroyed. K-01 Serf collects debris. Lgt. Treads destroyed. K-01 Serf collects debris. K-01 Serf cleans the Matter Pump. Slammed into S-10 Pest. S-10 Pest destroyed. [Achievement: Fist Fight] Acquired 15 matter. Acquired Beam Rifle. S-10 Pest destroyed. Acquired Beam Rifle. R-06 Scavenger collects Lgt. Ion Engine. Acquired Shield Generator. R-06 Scavenger collects Lgt. Assault Rifle. R-06 Scavenger collects Flight Unit. Acquired Shield Generator. R-06 Scavenger collects Lgt. Ion Engine. R-06 Scavenger collects Flight Unit. Map ----- +----------------------------------------------------+ | ???????????????????????????????????????? | | ???????????????????????????????????????? | | ???????????????????????????????????????? | | ???????????????????????????????????????? | | ???????????????????????????????????????? | | ???????????????????????????????????????? | | ???????????????????????????????????????? | | ???????????????????????????????????????? | | ???????????????????????????????????????? | | ???????????????????????????????? ? | | ??????????????????????####?+###? | | ??????????????????????# ? ? ? | | ??????????????????????# ? ? ? | | ???????????????????""?# """ """ """ | | ??????????????????""" # """ """ """ | | ???????????????? ?# """ """ """ | | ????????????????"" ??+ | | ????????????????"" ??# | | ????????????????" ???# """ """ """ | | ??????#????????? ????# """ """ """ | | ??????# ???????#/#???## """ """ """ | | ??????# ?????##r##### | | ??????# ###### g | | ??????# g | | ??????# [ %g% u | | ??????# [ @ #####+################ | | ??????# #??? ???????????# | | ??????# #???" "???????????# | | ??????# "T" #??"" ""??????????# | | ??????# #??"" ""??????????# | | ??????+ #?""" """?????????# | | ??????# ###"T"####??"" ""??????????# | | ??????# ??#"""#?????? ???????????# | | ??????###??#####?????? ???????????# | | ??????????????????????###???????????# | | ????????????????????????????????????#### | | ???????????????????????????????????????? | | ???????????????????????????????????????? | | ???????????????????????????????????????? | | ???????????????????????????????????????? | | ???????????????????????????????????????? | | ???????????????????????????????????????? | | ???????????????????????????????????????? | | ???????????????????????????????????????? | | ???????????????????????????????????????? | | ???????????????????????????????????????? | | ???????????????????????????????????????? | | ???????????????????????????????????????? | | | | | +----------------------------------------------------+ Best States ------------- Heat Dissipation 28 Energy Generation 10 Energy Capacity 250 Matter Stores 300 Matter Capacity 300 Sight Range 16 Robot Scan Range 14 Terrain Scan Density 10 Evasion (%) 50 Recoil Reduction 2 Item Schematics ----------------- None Robot Schematics ------------------ None Fabricated ------------ Nothing Alien Tech Used ----------------- None Achievements -------------- Fist Fight Unlikely Earthworm Challenges ------------ None Game ------ Seed RefineryBottomlessLink Manual? 0 Play Time 00:13:06 Cumulative 1.9 hours Start 2024.10.05 @ 18:19:49 End 2024.10.05 @ 18:30:24 Sessions 1 Manual Loads 0 Difficulty Rogue Special Mode None Game No. 5 Rogue 5 Adventurer 0 Explorer 0 Win Type - Total 0 Types 0/0/0/0/0/0/0/0/0 Lore% 0 Gallery% 7 Achievement% 6 Wizard Run 0 Options --------- Layout 2 ASCII 0 Keyboard 0 Movement Mouse Keybinds 0 Fullscreen 1 Font 24/Smallcaps Map View 76x44 Zoom Use 0% Tactical HUD 0 Map Filters NONE Filters NONE Steam 1 RUN: f5112f93-505e-4e34-9975-bc70ca7a8a10